fUST/lending_fUST_20241217
["ID","MTS","AMOUNT","RATE_DAILY","PERIOD"]
[345753376,1734449442297,-801.6954452,0.00025848,2]
[345753377,1734449442306,-179939.88534197,0.000259,2]
[345753378,1734449442315,-335.0,0.000259,12]
[345753379,1734449442324,-161.22928281,0.00025973,2]
[345753380,1734449442333,-151.0,0.00025977,6]
[345753381,1734449442342,-160.0,0.00025999,2]
[345753382,1734449442351,-1000.0,0.00026,26]
[345753383,1734449442360,-2926.46,0.00026,2]
[345753384,1734449442370,-100560.23067189,0.00026,20]
[345753385,1734449442380,-102959.82539615,0.00026,30]
[345753386,1734449442390,-22531.00849,0.00026,5]
[345753387,1734449442399,-46633.06179254,0.00026,30]
[345753388,1734449442409,-160.0,0.00026026,2]
[345753389,1734449442418,-500.0,0.00026027,2]
[345753390,1734449442428,-493.36349551,0.00026027,6]
[345753391,1734449442437,-888.82,0.00026027,6]
[345753392,1734449442446,-1617.75,0.00026027,6]
[345753393,1734449442461,-979.73,0.00026027,6]
[345753394,1734449442470,-765.64,0.00026027,6]
[345753395,1734449442480,-1112.55,0.00026027,6]
[345753396,1734449442489,-6168.17,0.00026027,6]
[345753397,1734449442499,-856.93,0.00026027,6]
[345753398,1734449442508,-500.0,0.00026027,6]
[345753399,1734449442517,-500.0,0.00026027,6]
[345753400,1734449442527,-500.0,0.00026027,6]
[345753401,1734449442536,-1174.52,0.00026027,6]
[345753402,1734449442545,-757.36,0.00026027,6]
[345753403,1734449442555,-500.0,0.00026027,6]
[345753404,1734449442565,-500.0,0.00026027,6]
[345753405,1734449442574,-2344.59,0.00026027,6]
[345753406,1734449442583,-719.11,0.00026027,6]
[345753407,1734449442593,-500.0,0.00026027,6]
[345753409,1734449442602,-500.0,0.00026027,6]
[345753411,1734449442612,-1446.5,0.00026027,2]
[345753412,1734449442624,-284.24,0.00026027,6]
[345753413,1734449442634,-2490.86219231,0.000261,60]
[345753414,1734449442643,-3197.13400792,0.000262,5]
[345753415,1734449442653,-160.0,0.000263,2]
[345753416,1734449442663,-500.0,0.00026301,2]
[345753417,1734449442673,-151.0,0.00026301,6]
[345753418,1734449442683,-888.82,0.00026301,6]
[345753421,1734449442693,-1617.75,0.00026301,6]
[345753424,1734449442703,-979.73,0.00026301,6]
[345753426,1734449442714,-765.64,0.00026301,6]
[345753428,1734449442723,-1112.55,0.00026301,6]
[345753430,1734449442732,-6168.17,0.00026301,6]
[345753431,1734449442742,-856.93,0.00026301,6]
[345753432,1734449442751,-500.0,0.00026301,6]
[345753433,1734449442761,-500.0,0.00026301,6]
[345753434,1734449442771,-500.0,0.00026301,6]
[345753436,1734449442780,-1174.52,0.00026301,6]
[345753440,1734449442790,-757.36,0.00026301,6]
[345753444,1734449442800,-500.0,0.00026301,6]
[345753448,1734449442810,-367.80186056,0.00026301,6]
[345753451,1734449442819,-2344.59,0.00026301,6]
[345753454,1734449442829,-719.11,0.00026301,6]
[345753457,1734449442838,-500.0,0.00026301,6]
[345753461,1734449442848,-468.44806379,0.00026301,6]
[345753464,1734449442859,-1446.5,0.00026301,2]
[345753467,1734449442869,-611.27,0.0002647,2]
[345753471,1734449442880,-161.73911472,0.00026475,2]
[345753475,1734449442889,-500.0,0.00026496,2]
[345753479,1734449442899,-242.10647648,0.00026496,2]
[345753483,1734449442909,-248.23199308,0.00026496,2]
[345753486,1734449442918,-260.46354467,0.00026496,2]
[345753488,1734449442929,-26607.91495361,0.00026497,2]
[345753490,1734449442939,-3508326.37246204,0.000265,5]
[345753492,1734449442948,-500.0,0.00026575,2]
[345753494,1734449442961,-888.82,0.00026575,6]
[345753496,1734449442973,-1617.75,0.00026575,6]
[345753498,1734449442983,-979.73,0.00026575,6]
[345753500,1734449442992,-765.64,0.00026575,6]
[345753502,1734449443003,-1112.55,0.00026575,6]
[345753504,1734449443013,-6168.17,0.00026575,6]
[345753506,1734449443023,-856.93,0.00026575,6]
[345753508,1734449443032,-500.0,0.00026575,6]
[345753510,1734449443042,-500.0,0.00026575,6]
[345753512,1734449443051,-500.0,0.00026575,6]
[345753514,1734449443061,-1174.52,0.00026575,6]
[345753516,1734449443070,-757.36,0.00026575,6]
[345753518,1734449443081,-500.0,0.00026575,6]
[345753520,1734449443090,-2344.59,0.00026575,6]
[345753522,1734449443100,-719.11,0.00026575,6]
[345753524,1734449443110,-500.0,0.00026575,6]
[345753526,1734449443119,-1446.5,0.00026575,2]
[345753528,1734449443129,-420.0,0.00026614,2]
[345753530,1734449443139,-151.0,0.00026624,7]
[345753532,1734449443148,-7687.65781618,0.00026674,12]
[345753534,1734449443158,-586867.33727263,0.000267,7]
[345753536,1734449443168,-400.0,0.00026706,2]
[345753538,1734449443178,-600.0,0.00026807,2]
[345753540,1734449443188,-500.0,0.00026849,2]
[345753542,1734449443198,-888.82,0.00026849,6]
[345753544,1734449443209,-1617.75,0.00026849,6]
[345753546,1734449443219,-979.73,0.00026849,6]
[345753548,1734449443229,-765.64,0.00026849,6]
[345753550,1734449443239,-1112.55,0.00026849,6]
[345753552,1734449443253,-6168.17,0.00026849,6]
[345753554,1734449443263,-856.93,0.00026849,6]
[345753556,1734449443273,-297.90964964,0.00026849,6]
[345753558,1734449443283,-443.72614171,0.00026849,6]
[345753560,1734449443293,-500.0,0.00026849,6]
[345753562,1734449443302,-1174.52,0.00026849,6]
[345753564,1734449443311,-757.36,0.00026849,6]
[345753566,1734449443320,-500.0,0.00026849,6]
[345753568,1734449443330,-2344.59,0.00026849,6]
[345753570,1734449443339,-719.11,0.00026849,6]
[345753572,1734449443348,-500.0,0.00026849,6]
[345753574,1734449443357,-1446.5,0.00026849,2]
[345753575,1734449443368,-151.0,0.00026948,7]
[345753577,1734449443377,-1000.0,0.00027,27]
[345753579,1734449443387,-169.0,0.00027,2]
[345753581,1734449443397,-2084.58049731,0.00027,10]
[345753583,1734449443406,-500.0,0.00027,30]
[345753585,1734449443415,-500.0,0.00027,30]
[345753587,1734449443424,-500.0,0.00027,30]
[345753589,1734449443434,-700.0,0.00027,30]
[345753591,1734449443443,-700.0,0.00027,30]
[345753593,1734449443452,-700.0,0.00027,30]
[345753595,1734449443463,-700.0,0.00027,30]
[345753597,1734449443473,-700.0,0.00027,30]
[345753599,1734449443482,-700.0,0.00027,30]
[345753601,1734449443491,-700.0,0.00027,30]
[345753603,1734449443500,-700.0,0.00027,30]
[345753605,1734449443509,-700.0,0.00027,30]
[345753607,1734449443518,-700.0,0.00027,30]
[345753609,1734449443527,-700.0,0.00027,30]
[345753611,1734449443537,-700.0,0.00027,30]
[345753613,1734449443547,-700.0,0.00027,30]
[345753616,1734449443556,-1300.0,0.00027,30]
[345753618,1734449443566,-1100.0,0.00027,30]
[345753620,1734449443576,-1100.0,0.00027,30]
[345753622,1734449443585,-1100.0,0.00027,30]
[345753624,1734449443594,-1100.0,0.00027,30]
[345753626,1734449443603,-1100.0,0.00027,30]
[345753628,1734449443612,-1100.0,0.00027,30]
[345753629,1734449443622,-1100.0,0.00027,30]
[345753632,1734449443635,-1100.0,0.00027,30]
[345753634,1734449443644,-1100.0,0.00027,30]
[345753636,1734449443654,-1100.0,0.00027,30]
[345753637,1734449443663,-1100.0,0.00027,30]
[345753640,1734449443674,-1100.0,0.00027,30]
[345753642,1734449443683,-1100.0,0.00027,30]
[345753643,1734449443693,-1800.0,0.00027,30]
[345753646,1734449443705,-1000.0,0.00027,30]
[345753647,1734449443716,-1000.0,0.00027,30]
[345753649,1734449443726,-1000.0,0.00027,30]
[345753651,1734449443735,-1000.0,0.00027,30]
[345753653,1734449443745,-1000.0,0.00027,30]
[345753655,1734449443755,-1000.0,0.00027,30]
[345753657,1734449443764,-1000.0,0.00027,30]
[345753659,1734449443775,-1000.0,0.00027,30]
[345753661,1734449443784,-1000.0,0.00027,30]
[345753663,1734449443794,-1000.0,0.00027,30]
[345753666,1734449443804,-1000.0,0.00027,30]
[345753668,1734449443814,-1000.0,0.00027,30]
[345753670,1734449443823,-1000.0,0.00027,30]
[345753672,1734449443833,-1300.0,0.00027,30]
[345753674,1734449443843,-420.0,0.00027012,2]
[345753676,1734449443852,-173.22044476,0.00027022,2]
[345753678,1734449443863,-153.0,0.00027068,2]
[345753680,1734449443872,-426.0845422,0.00027068,2]
[345753682,1734449443882,-457.7871141,0.00027068,2]
[345753684,1734449443891,-600.0,0.00027086,2]
[345753686,1734449443901,-173.22044476,0.00027122,2]
[345753688,1734449443910,-500.0,0.00027123,2]
[345753690,1734449443919,-888.82,0.00027123,6]
[345753691,1734449443930,-1617.75,0.00027123,6]
[345753694,1734449443940,-979.73,0.00027123,6]
[345753696,1734449443950,-765.64,0.00027123,6]
[345753698,1734449443962,-1112.55,0.00027123,6]
[345753700,1734449443972,-6168.17,0.00027123,6]
[345753702,1734449443982,-856.93,0.00027123,6]
[345753704,1734449443991,-500.0,0.00027123,6]
[345753705,1734449444001,-1174.52,0.00027123,6]
[345753718,1734449444119,-757.36,0.00027123,6]
[345753720,1734449444130,-500.0,0.00027123,6]
[345753722,1734449444140,-2344.59,0.00027123,6]
[345753724,1734449444150,-719.11,0.00027123,6]
[345753726,1734449444160,-500.0,0.00027123,6]
[345753728,1734449444170,-1446.5,0.00027123,2]
[345753731,1734449444182,-173.22044476,0.00027222,2]
[345753733,1734449444191,-151.0,0.00027271,7]
[345753735,1734449444201,-2574.4797,0.00027334,15]
[345753737,1734449444215,-500.0,0.00027397,2]
[345753738,1734449444224,-796.2,0.00027397,7]
[345753740,1734449444234,-888.82,0.00027397,6]
[345753742,1734449444244,-1617.75,0.00027397,6]
[345753744,1734449444254,-979.73,0.00027397,6]
[345753747,1734449444265,-765.64,0.00027397,6]
[345753749,1734449444275,-1112.55,0.00027397,6]
[345753750,1734449444284,-6168.17,0.00027397,6]
[345753753,1734449444294,-2626.11,0.00027397,2]
[345753754,1734449444303,-856.93,0.00027397,6]
[345753757,1734449444312,-500.0,0.00027397,6]
[345753759,1734449444323,-1174.52,0.00027397,6]
[345753761,1734449444332,-757.36,0.00027397,6]
[345753763,1734449444342,-500.0,0.00027397,6]
[345753764,1734449444351,-2344.59,0.00027397,6]
[345753766,1734449444361,-719.11,0.00027397,6]
[345753769,1734449444370,-500.0,0.00027397,6]
[345753771,1734449444380,-1446.5,0.00027397,2]
[345753772,1734449444389,-335.0,0.000274,13]
[345753775,1734449444399,-864.2,0.000274,31]
[345753777,1734449444408,-864.2,0.000274,31]
[345753779,1734449444418,-864.2,0.000274,31]
[345753781,1734449444427,-864.2,0.000274,31]
[345753782,1734449444437,-864.2,0.000274,31]
[345753785,1734449444447,-864.2,0.000274,31]
[345753787,1734449444460,-864.2,0.000274,31]
[345753788,1734449444470,-864.2,0.000274,31]
[345753790,1734449444480,-864.2,0.000274,31]
[345753793,1734449444491,-864.2,0.000274,31]
[345753795,1734449444500,-864.2,0.000274,31]
[345753797,1734449444510,-864.2,0.000274,31]
[345753799,1734449444519,-47802.71388653,0.000275,120]
[345753802,1734449444540,-63037.55627586,0.000275,120]
[345753804,1734449444550,-5000.0,0.000275,5]
[345753806,1734449444560,-572.567845,0.00027579,4]
[345753808,1734449444569,-151.0,0.00027595,7]
[345753810,1734449444579,-400.0,0.00027659,2]
[345753812,1734449444589,-500.0,0.00027671,2]
[345753814,1734449444599,-888.82,0.00027671,6]
[345753816,1734449444608,-1617.75,0.00027671,6]
[345753818,1734449444618,-979.73,0.00027671,6]
[345753820,1734449444629,-765.64,0.00027671,6]
[345753822,1734449444642,-1112.55,0.00027671,6]
[345753824,1734449444651,-6168.17,0.00027671,6]
[345753826,1734449444661,-856.93,0.00027671,6]
[345753828,1734449444672,-500.0,0.00027671,6]
[345753830,1734449444682,-1174.52,0.00027671,6]
[345753832,1734449444692,-757.36,0.00027671,6]
[345753834,1734449444701,-500.0,0.00027671,6]
[345753836,1734449444716,-2344.59,0.00027671,6]
[345753838,1734449444726,-719.11,0.00027671,6]
[345753840,1734449444736,-500.0,0.00027671,6]
[345753842,1734449444747,-1446.5,0.00027671,2]
[345753844,1734449444756,-162.8,0.000277,2]
[345753846,1734449444766,-162.8,0.000277,2]
[345753848,1734449444775,-151.0,0.000277,16]
[345753850,1734449444784,-1340.106,0.00027749,2]
[345753852,1734449444793,-4829.27229188,0.00027754,2]
[345753854,1734449444802,-2185.68706103,0.00027754,2]
[345753856,1734449444812,-2000.0,0.000278,2]
[345753858,1734449444821,-187.0,0.000278,2]
[345753860,1734449444830,-151.0,0.00027845,7]
[345753862,1734449444839,-151.0,0.00027845,7]
[345753864,1734449444848,-151.0,0.00027845,7]
[345753866,1734449444857,-151.0,0.00027845,7]
[345753868,1734449444866,-292.926422,0.00027845,7]
[345753870,1734449444875,-151.0,0.00027845,7]
[345753872,1734449444884,-151.0,0.00027845,7]
[345753874,1734449444894,-151.0,0.00027845,7]
[345753876,1734449444903,-151.0,0.00027845,7]
[345753878,1734449444913,-151.0,0.00027845,7]
[345753880,1734449444923,-151.0,0.00027845,7]
[345753882,1734449444932,-151.0,0.00027845,7]
[345753884,1734449444942,-151.0,0.00027845,7]
[345753886,1734449444952,-250.452944,0.00027845,7]
[345753888,1734449444964,-231.756606,0.00027845,7]
[345753890,1734449444973,-231.756606,0.00027845,7]
[345753892,1734449444983,-231.756606,0.00027845,7]
[345753894,1734449444993,-231.756606,0.00027845,7]
[345753896,1734449445002,-231.756606,0.00027845,7]
[345753898,1734449445011,-231.756606,0.00027845,7]
[345753900,1734449445021,-231.756606,0.00027845,7]
[345753902,1734449445031,-231.756606,0.00027845,7]
[345753904,1734449445040,-231.756606,0.00027845,7]
[345753906,1734449445050,-231.756606,0.00027845,7]
[345753908,1734449445061,-231.756606,0.00027845,7]
[345753910,1734449445071,-231.756606,0.00027845,7]
[345753912,1734449445080,-231.756606,0.00027845,7]
[345753914,1734449445090,-231.756606,0.00027845,7]
[345753916,1734449445099,-231.756606,0.00027845,7]
[345753918,1734449445109,-231.756606,0.00027845,7]
[345753919,1734449445118,-231.756606,0.00027845,7]
[345753920,1734449445127,-231.756606,0.00027845,7]
[345753921,1734449445137,-231.756606,0.00027845,7]
[345753922,1734449445146,-231.75661209,0.00027845,7]
[345753923,1734449445155,-151.0,0.00027852,7]
[345753924,1734449445164,-151.0,0.00027852,7]
[345753925,1734449445173,-151.0,0.00027852,7]
[345753926,1734449445183,-151.0,0.00027852,7]
[345753928,1734449445192,-151.0,0.00027852,7]
[345753930,1734449445201,-151.0,0.00027852,7]
[345753932,1734449445213,-151.0,0.00027852,7]
[345753934,1734449445223,-151.0,0.00027852,7]
[345753936,1734449445232,-151.0,0.00027852,7]
[345753938,1734449445241,-151.0,0.00027852,7]
[345753940,1734449445250,-151.0,0.00027852,7]
[345753942,1734449445259,-151.0,0.00027852,7]
[345753944,1734449445269,-151.0,0.00027852,7]
[345753946,1734449445278,-151.0,0.00027852,7]
[345753948,1734449445288,-151.0,0.00027852,7]
[345753950,1734449445298,-151.0,0.00027852,7]
[345753952,1734449445307,-228.7372,0.00027852,7]
[345753954,1734449445316,-151.0,0.00027852,7]
[345753956,1734449445325,-151.0,0.00027852,7]
[345753958,1734449445334,-151.0,0.00027852,7]
[345753960,1734449445344,-151.0,0.00027852,7]
[345753962,1734449445353,-151.0,0.00027852,7]
[345753964,1734449445362,-151.0,0.00027852,7]
[345753966,1734449445371,-151.0,0.00027852,7]
[345753968,1734449445381,-151.0,0.00027852,7]
[345753970,1734449445390,-151.0,0.00027852,7]
[345753972,1734449445400,-151.0,0.00027852,7]
[345753974,1734449445410,-151.0,0.00027852,7]
[345753976,1734449445419,-151.0,0.00027852,7]
[345753978,1734449445429,-151.0,0.00027852,7]
[345753980,1734449445438,-151.0,0.00027852,7]
[345753982,1734449445448,-151.0,0.00027852,7]
[345753985,1734449445460,-151.0,0.00027852,7]
[345753986,1734449445470,-151.0,0.00027852,7]
[345753988,1734449445479,-207.342431,0.00027852,7]
[345753990,1734449445489,-151.0,0.00027852,7]
[345753993,1734449445500,-151.0,0.00027852,7]
[345753995,1734449445510,-245.146488,0.00027852,7]
[345753997,1734449445520,-178.592086,0.00027852,7]
[345753999,1734449445530,-178.592086,0.00027852,7]
[345754001,1734449445539,-178.592086,0.00027852,7]
[345754003,1734449445548,-178.592086,0.00027852,7]
[345754005,1734449445559,-178.592086,0.00027852,7]
[345754008,1734449445568,-178.592086,0.00027852,7]
[345754011,1734449445577,-178.592086,0.00027852,7]
[345754014,1734449445587,-178.592086,0.00027852,7]
[345754018,1734449445596,-178.592086,0.00027852,7]
[345754022,1734449445606,-178.592086,0.00027852,7]
[345754026,1734449445616,-178.592086,0.00027852,7]
[345754030,1734449445629,-178.592086,0.00027852,7]
[345754032,1734449445639,-178.592086,0.00027852,7]
[345754035,1734449445648,-178.592086,0.00027852,7]
[345754037,1734449445657,-178.592086,0.00027852,7]
[345754040,1734449445668,-178.592086,0.00027852,7]
[345754043,1734449445677,-178.592086,0.00027852,7]
[345754046,1734449445686,-178.592086,0.00027852,7]
[345754049,1734449445695,-178.592086,0.00027852,7]
[345754052,1734449445704,-178.59209,0.00027852,7]
[345754054,1734449445719,-151.0,0.00027852,7]
[345754056,1734449445728,-248.969877,0.00027852,7]
[345754058,1734449445738,-151.0,0.00027852,7]
[345754060,1734449445749,-151.0,0.00027852,7]
[345754062,1734449445759,-151.0,0.00027852,7]
[345754064,1734449445768,-151.0,0.00027852,7]
[345754065,1734449445777,-151.0,0.00027852,7]
[345754068,1734449445787,-151.0,0.00027852,7]
[345754070,1734449445797,-151.0,0.00027852,7]
[345754072,1734449445807,-151.0,0.00027852,7]
[345754074,1734449445817,-151.0,0.00027852,7]
[345754076,1734449445826,-151.0,0.00027852,7]
[345754078,1734449445835,-151.0,0.00027852,7]
[345754080,1734449445844,-183.645523,0.00027852,7]
[345754082,1734449445854,-151.0,0.00027852,7]
[345754084,1734449445864,-151.0,0.00027852,7]
[345754086,1734449445875,-151.0,0.00027852,7]
[345754088,1734449445885,-151.0,0.00027852,7]
[345754090,1734449445894,-151.0,0.00027852,7]
[345754092,1734449445903,-151.0,0.00027852,7]
[345754094,1734449445912,-151.0,0.00027852,7]
[345754096,1734449445922,-151.0,0.00027852,7]
[345754098,1734449445931,-199132.25470137,0.00027854,2]
[345754100,1734449445940,-11937.41166936,0.00027854,2]
[345754102,1734449445950,-517466.35721037,0.00027875,10]
[345754110,1734449446025,-151.0,0.00027854,7]
[345754112,1734449446034,-151.0,0.00027854,7]
[345754114,1734449446044,-151.0,0.00027854,7]
[345754116,1734449446053,-151.0,0.00027854,7]
[345754118,1734449446063,-155.436416,0.00027854,7]
[345754120,1734449446072,-151.0,0.00027854,7]
[345754122,1734449446082,-151.0,0.00027854,7]
[345754124,1734449446091,-151.0,0.00027854,7]
[345754126,1734449446100,-159.83702,0.00027854,7]
[345754128,1734449446110,-151.0,0.00027854,7]
[345754130,1734449446118,-151.0,0.00027854,7]
[345754132,1734449446128,-151.0,0.00027854,7]
[345754134,1734449446137,-153.720482,0.00027854,7]
[345754136,1734449446147,-151.0,0.00027854,7]
[345754138,1734449446156,-151.0,0.00027854,7]
[345754140,1734449446166,-151.0,0.00027854,7]
[345754143,1734449446176,-151.0,0.00027854,7]
[345754144,1734449446186,-151.0,0.00027854,7]
[345754147,1734449446196,-151.0,0.00027854,7]
[345754149,1734449446209,-272.826624,0.00027854,7]
[345754151,1734449446218,-169.368648,0.00027854,7]
[345754153,1734449446227,-151.0,0.00027854,7]
[345754155,1734449446236,-151.0,0.00027854,7]
[345754157,1734449446245,-151.0,0.00027854,7]
[345754159,1734449446255,-151.0,0.00027854,7]
[345754161,1734449446264,-151.0,0.00027854,7]
[345754163,1734449446273,-151.0,0.00027854,7]
[345754165,1734449446282,-151.0,0.00027854,7]
[345754167,1734449446292,-203.190262,0.00027854,7]
[345754168,1734449446301,-151.0,0.00027854,7]
[345754171,1734449446312,-151.0,0.00027854,7]
[345754173,1734449446321,-151.0,0.00027854,7]
[345754174,1734449446331,-151.0,0.00027854,7]
[345754176,1734449446340,-151.0,0.00027854,7]
[345754180,1734449446350,-151.0,0.00027854,7]
[345754181,1734449446357,-151.0,0.00027854,7]
[345754184,1734449446365,-151.0,0.00027854,7]
[345754187,1734449446372,-151.0,0.00027854,7]
[345754191,1734449446382,-151.0,0.00027854,7]
[345754194,1734449446391,-151.0,0.00027854,7]
[345754196,1734449446400,-151.0,0.00027854,7]
[345754198,1734449446410,-151.0,0.00027854,7]
[345754200,1734449446419,-245.141008,0.00027854,7]
[345754203,1734449446429,-151.0,0.00027854,7]
[345754206,1734449446439,-179.766862,0.00027854,7]
[345754209,1734449446449,-151.0,0.00027854,7]
[345754211,1734449446461,-214.83949,0.00027854,7]
[345754214,1734449446471,-151.0,0.00027854,7]
[345754217,1734449446481,-151.0,0.00027854,7]
[345754220,1734449446491,-151.0,0.00027854,7]
[345754223,1734449446501,-151.0,0.00027854,7]
[345754226,1734449446511,-151.0,0.00027854,7]
[345754228,1734449446520,-188.462968,0.00027854,7]
[345754230,1734449446530,-151.0,0.00027854,7]
[345754232,1734449446539,-151.0,0.00027854,7]
[345754234,1734449446548,-151.0,0.00027854,7]
[345754236,1734449446558,-151.0,0.00027854,7]
[345754238,1734449446567,-151.0,0.00027854,7]
[345754240,1734449446576,-151.0,0.00027854,7]
[345754242,1734449446585,-151.0,0.00027854,7]
[345754244,1734449446594,-151.0,0.00027854,7]
[345754246,1734449446604,-472.0725,0.00027854,7]
[345754248,1734449446613,-472.0725,0.00027854,7]
[345754250,1734449446623,-472.0725,0.00027854,7]
[345754252,1734449446634,-472.0725,0.00027854,7]
[345754254,1734449446644,-472.0725,0.00027854,7]
[345754256,1734449446653,-472.0725,0.00027854,7]
[345754258,1734449446663,-472.0725,0.00027854,7]
[345754260,1734449446673,-472.0725,0.00027854,7]
[345754262,1734449446683,-472.0725,0.00027854,7]
[345754264,1734449446692,-472.0725,0.00027854,7]
[345754266,1734449446702,-472.0725,0.00027854,7]
[345754268,1734449446715,-472.0725,0.00027854,7]
[345754270,1734449446725,-472.0725,0.00027854,7]
[345754272,1734449446741,-472.0725,0.00027854,7]
[345754274,1734449446758,-472.0725,0.00027854,7]
[345754276,1734449446767,-472.0725,0.00027854,7]
[345754278,1734449446777,-472.0725,0.00027854,7]
[345754280,1734449446786,-472.0725,0.00027854,7]
[345754282,1734449446795,-472.0725,0.00027854,7]
[345754284,1734449446804,-472.07249,0.00027854,7]
[345754286,1734449446813,-293.342459,0.00027854,7]
[345754288,1734449446823,-293.342459,0.00027854,7]
[345754299,1734449446931,-293.342459,0.00027854,7]
[345754301,1734449446942,-293.342459,0.00027854,7]
[345754303,1734449446952,-293.342459,0.00027854,7]
[345754305,1734449446967,-293.342459,0.00027854,7]
[345754307,1734449446978,-293.342459,0.00027854,7]
[345754309,1734449446987,-293.342459,0.00027854,7]
[345754311,1734449446996,-151.0,0.00027854,7]
[345754313,1734449447005,-293.342459,0.00027854,7]
[345754315,1734449447015,-151.0,0.00027854,7]
[345754317,1734449447025,-190.908401,0.00027854,7]
[345754319,1734449447034,-293.342459,0.00027854,7]
[345754321,1734449447044,-293.342459,0.00027854,7]
[345754323,1734449447054,-293.342459,0.00027854,7]
[345754325,1734449447064,-293.342459,0.00027854,7]
[345754327,1734449447074,-293.342459,0.00027854,7]
[345754329,1734449447084,-293.342459,0.00027854,7]
[345754331,1734449447094,-293.342459,0.00027854,7]
[345754333,1734449447104,-293.342459,0.00027854,7]
[345754335,1734449447114,-293.342459,0.00027854,7]
[345754337,1734449447124,-293.342459,0.00027854,7]
[345754339,1734449447134,-293.342453,0.00027854,7]
[345754341,1734449447146,-524.002443,0.00027854,7]
[345754343,1734449447156,-524.002443,0.00027854,7]
[345754345,1734449447165,-524.002443,0.00027854,7]
[345754347,1734449447175,-524.002443,0.00027854,7]
[345754349,1734449447185,-524.002443,0.00027854,7]
[345754351,1734449447194,-524.002443,0.00027854,7]
[345754353,1734449447204,-524.002443,0.00027854,7]
[345754355,1734449447220,-524.002443,0.00027854,7]
[345754357,1734449447231,-524.002443,0.00027854,7]
[345754359,1734449447242,-524.002443,0.00027854,7]
[345754362,1734449447264,-524.002443,0.00027854,7]
[345754365,1734449447278,-524.002443,0.00027854,7]
[345754367,1734449447290,-524.002443,0.00027854,7]
[345754369,1734449447301,-524.002443,0.00027854,7]
[345754371,1734449447313,-524.002443,0.00027854,7]
[345754392,1734449447532,-524.002443,0.00027854,7]
[345754395,1734449447544,-524.002443,0.00027854,7]
[345754397,1734449447555,-524.002443,0.00027854,7]
[345754399,1734449447565,-524.002443,0.00027854,7]
[345754401,1734449447576,-524.002439,0.00027854,7]
[345754403,1734449447586,-169.9401,0.00027854,7]
[345754405,1734449447597,-169.9401,0.00027854,7]
[345754407,1734449447608,-169.9401,0.00027854,7]
[345754409,1734449447620,-169.9401,0.00027854,7]
[345754411,1734449447632,-169.9401,0.00027854,7]
[345754413,1734449447642,-169.9401,0.00027854,7]
[345754415,1734449447652,-169.9401,0.00027854,7]
[345754417,1734449447661,-169.9401,0.00027854,7]
[345754419,1734449447671,-169.9401,0.00027854,7]
[345754421,1734449447681,-169.9401,0.00027854,7]
[345754423,1734449447690,-169.9401,0.00027854,7]
[345754425,1734449447701,-169.9401,0.00027854,7]
[345754427,1734449447715,-169.9401,0.00027854,7]
[345754429,1734449447725,-169.9401,0.00027854,7]